[Event "Speed Chess Championship 2020"]
[Site "Online"]
[Date "2020.11.08"]
[Round "1.25"]
[White "So, Wesley"]
[Black "Abdusattorov, Nodirbek"]
[Result "1-0"]
[ECO "B10"]
[WhiteElo "2816"]
[BlackElo "2662"]
[Annotator "ChessBase"]
[PlyCount "153"]
[EventDate "2020.10.31"]
[EventType "k.o."]
[SourceTitle "playchess.com"]
[Source "ChessBase"]
[SourceQuality "1"]
[TimeControl "60+1"]

1. e4 {[%emt 0:00:01]} c6 {[%emt 0:00:01]} 2. Nf3 {[%emt 0:00:00]} d5 {[%emt 0:00:00]} 3. d3 {[%emt 0:00:01]} Qc7 {[%emt 0:00:01]} 4. Nbd2 {[%emt 0:00:05]} g6 {[%emt 0:00:02]} 5. e5 {[%emt 0:00:03]} Bg4 {[%emt 0:00:01]} 6. d4 {[%emt 0:00:01]} Bg7 {[%emt 0:00:01]} 7. h3 {[%emt 0:00:01]} Bxf3 {[%emt 0:00:00]} 8. Nxf3 {[%emt 0:00:00]} e6 {[%emt 0:00:01]} 9. c3 {[%emt 0:00:02]} c5 {[%emt 0:00:01]} 10. Bb5+ {[%emt 0:00:03]} Nc6 {[%emt 0:00:00]} 11. O-O {[%emt 0:00:00]} Nge7 {[%emt 0:00:01]} 12. Be3 {[%emt 0:00:03]} O-O {[%emt 0:00:01]} 13. Re1 {[%emt 0:00:01]} a6 {[%emt 0:00:00]} 14. Bxc6 {[%emt 0:00:02]} Nxc6 {[%emt 0:00:03]} 15. Qd2 {[%emt 0:00:01]} cxd4 {[%emt 0:00:01]} 16. cxd4 {[%emt 0:00:00]} Rac8 {[%emt 0:00:01]} 17. h4 {[%emt 0:00:02]} Qa5 {[%emt 0:00:02]} 18. Rac1 {[%emt 0:00:07]} Qxd2 {[%emt 0:00:01]} 19. Bxd2 {[%emt 0:00:01]} Rfe8 {[%emt 0:00:02]} 20. h5 {[%emt 0:00:03]} f6 {[%emt 0:00:01]} 21. exf6 {[%emt 0:00:07]} Bxf6 {[%emt 0:00:01]} 22. hxg6 {[%emt 0:00:01]} hxg6 {[%emt 0:00:00]} 23. Be3 {[%emt 0:00:01]} Kf7 {[%emt 0:00:03]} 24. Rc3 {[%emt 0:00:03]} Na5 {[%emt 0:00:02]} 25. Rec1 {[%emt 0:00:01]} Rxc3 {[%emt 0:00:01]} 26. Rxc3 {[%emt 0:00:00]} Nc4 {[%emt 0:00:00]} 27. b3 {[%emt 0:00:01]} Nd6 {[%emt 0:00:03]} 28. Bf4 {[%emt 0:00:03]} Nb5 {[%emt 0:00:01]} 29. Rd3 {[%emt 0:00:03]} Rc8 {[%emt 0:00:01]} 30. Ne5+ {[%emt 0:00:00]} Kg7 {[%emt 0:00:02]} 31. Rg3 {[%emt 0:00:02]} g5 {[%emt 0:00:08]} 32. Bxg5 {[%emt 0:00:01]} Bxg5 {[%emt 0:00:00]} 33. Rxg5+ {[%emt 0:00:01]} Kf6 {[%emt 0:00:00]} 34. Rg6+ {[%emt 0:00:01]} Kf5 {[%emt 0:00:02]} 35. g4+ {[%emt 0:00:02]} Ke4 {[%emt 0:00:00]} 36. Rxe6 {[%emt 0:00:03]} Nxd4 {[%emt 0:00:01]} 37. Re7 {[%emt 0:00:00]} Kf4 {[%emt 0:00:06]} 38. Kg2 {[%emt 0:00:01]} Rc2 {[%emt 0:00:06]} 39. Kh3 {[%emt 0:00:04]} Rxa2 {[%emt 0:00:11]} 40. Nd3+ {[%emt 0:00:01]} Kg5 {[%emt 0:00:01]} 41. Re5+ {[%emt 0:00:01]} Kf6 {[%emt 0:00:01]} 42. g5+ {[%emt 0:00:01]} Kf7 {[%emt 0:00:03]} 43. Rxd5 {[%emt 0:00:02]} Ne6 {[%emt 0:00:00]} 44. f4 {[%emt 0:00:02]} Ra1 {[%emt 0:00:05]} 45. Kg4 {[%emt 0:00:03]} Rg1+ {[%emt 0:00:01]} 46. Kf3 {[%emt 0:00:01]} Rf1+ {[%emt 0:00:01]} 47. Kg3 {[%emt 0:00:01]} Ng7 {[%emt 0:00:02]} 48. Rd7+ {[%emt 0:00:01]} Kg8 {[%emt 0:00:04]} 49. Rxb7 {[%emt 0:00:04]} Nf5+ {[%emt 0:00:01]} 50. Kg4 {[%emt 0:00:01]} Ng7 {[%emt 0:00:07]} 51. Ne5 {[%emt 0:00:05]} Rg1+ {[%emt 0:00:00]} 52. Kf3 {[%emt 0:00:01]} Ne6 {[%emt 0:00:00]} 53. Rb8+ {[%emt 0:00:03]} Kg7 {[%emt 0:00:01]} 54. Rb7+ {[%emt 0:00:00]} Kg8 {[%emt 0:00:01]} 55. Ng6 {[%emt 0:00:01]} a5 {[%emt 0:00:05]} 56. Rb6 {[%emt 0:00:02]} Kf7 {[%emt 0:00:04]} 57. Ne5+ {[%emt 0:00:01]} Ke7 {[%emt 0:00:00]} 58. Ng6+ {[%emt 0:00:02]} Kf7 {[%emt 0:00:01]} 59. Ne5+ {[%emt 0:00:01]} Ke7 {[%emt 0:00:00]} 60. Ke4 {[%emt 0:00:00]} Rf1 {[%emt 0:00:03]} 61. Ng6+ {[%emt 0:00:03]} Kf7 {[%emt 0:00:01]} 62. Ne5+ {[%emt 0:00:01]} Ke7 {[%emt 0:00:00]} 63. Nd3 {[%emt 0:00:01]} Kf7 {[%emt 0:00:07]} 64. Ke5 {[%emt 0:00:02]} Ng7 {[%emt 0:00:02]} 65. Rf6+ {[%emt 0:00:02]} Kg8 {[%emt 0:00:01]} 66. Ra6 {[%emt 0:00:02]} Rf3 {[%emt 0:00:01]} 67. Ke4 {[%emt 0:00:02]} Rf1 {[%emt 0:00:01]} 68. Rxa5 {[%emt 0:00:01]} Ne6 {[%emt 0:00:00]} 69. Ra6 {[%emt 0:00:01]} Nc7 {[%emt 0:00:03]} 70. Rc6 {[%emt 0:00:02]} Ne8 {[%emt 0:00:01]} 71. Ne5 {[%emt 0:00:02]} Re1+ {[%emt 0:00:02]} 72. Kf5 {[%emt 0:00:01]} Rf1 {[%emt 0:00:01]} 73. Rc8 {[%emt 0:00:01]} Kf8 {[%emt 0:00:00]} 74. g6 {[%emt 0:00:01]} Ke7 {[%emt 0:00:00]} 75. Rxe8+ {[%emt 0:00:02]} Kxe8 {[%emt 0:00:01]} 76. g7 {[%emt 0:00:01]} Rg1 {[%emt 0:00:01]} 77. Kf6 {[%emt 0:00:00]} 1-0

[Event "Speed Chess Championship 2020"]
[Site "Online"]
[Date "2020.11.04"]
[Round "1.25"]
[White "Firouzja, Alireza"]
[Black "Fedoseev, Vladimir"]
[Result "1-0"]
[ECO "B12"]
[WhiteElo "2749"]
[BlackElo "2676"]
[Annotator "ChessBase"]
[PlyCount "133"]
[EventDate "2020.10.31"]
[EventType "k.o."]
[SourceTitle "playchess.com"]
[Source "ChessBase"]
[SourceQuality "1"]
[TimeControl "60+1"]

1. e4 {[%emt 0:00:01]} c6 {[%emt 0:00:01]} 2. d4 {[%emt 0:00:01]} d5 {[%emt 0:00:00]} 3. e5 {[%emt 0:00:01]} Bf5 {[%emt 0:00:01]} 4. Nf3 {[%emt 0:00:01]} e6 {[%emt 0:00:01]} 5. Be2 {[%emt 0:00:01]} h6 {[%emt 0:00:01]} 6. O-O {[%emt 0:00:02]} Nd7 {[%emt 0:00:03]} 7. c3 {[%emt 0:00:02]} Ne7 {[%emt 0:00:01]} 8. Nbd2 {[%emt 0:00:02]} c5 {[%emt 0:00:01]} 9. dxc5 {[%emt 0:00:04]} Nxc5 {[%emt 0:00:03]} 10. Bb5+ {[%emt 0:00:06]} Nd7 {[%emt 0:00:01]} 11. Nd4 {[%emt 0:00:01]} Bg6 {[%emt 0:00:03]} 12. Re1 {[%emt 0:00:07]} a6 {[%emt 0:00:04]} 13. Ba4 {[%emt 0:00:01]} Nf5 {[%emt 0:00:05]} 14. N2f3 {[%emt 0:00:04]} Nxd4 {[%emt 0:00:04]} 15. Nxd4 {[%emt 0:00:01]} Be7 {[%emt 0:00:00]} 16. Qg4 {[%emt 0:00:01]} h5 {[%emt 0:00:07]} 17. Qg3 {[%emt 0:00:02]} Bh4 {[%emt 0:00:23]} 18. Nxe6 {[%emt 0:00:07]} Bxg3 {[%emt 0:00:02]} 19. Nxd8 {[%emt 0:00:01]} Bxf2+ {[%emt 0:00:02]} 20. Kxf2 {[%emt 0:00:04]} Kxd8 {[%emt 0:00:00]} 21. e6 {[%emt 0:00:02]} b5 {[%emt 0:00:09]} 22. Bb3 {[%emt 0:00:05]} Nc5 {[%emt 0:00:00]} 23. Bxd5 {[%emt 0:00:13]} Nd3+ {[%emt 0:00:03]} 24. Kg1 {[%emt 0:00:03]} Nxe1 {[%emt 0:00:02]} 25. Bg5+ {[%emt 0:00:05]} f6 {[%emt 0:00:02]} 26. Bxa8 {[%emt 0:00:01]} Nc2 {[%emt 0:00:02]} 27. Rd1+ {[%emt 0:00:01]} Ke7 {[%emt 0:00:00]} 28. Bb7 {[%emt 0:00:04]} fxg5 {[%emt 0:00:01]} 29. Bxa6 {[%emt 0:00:01]} Kxe6 {[%emt 0:00:03]} 30. Bxb5 {[%emt 0:00:01]} Rb8 {[%emt 0:00:00]} 31. a4 {[%emt 0:00:01]} Be4 {[%emt 0:00:02]} 32. b4 {[%emt 0:00:02]} Ke5 {[%emt 0:00:01]} 33. Rd7 {[%emt 0:00:01]} Bf5 {[%emt 0:00:02]} 34. Rxg7 {[%emt 0:00:01]} Kf6 {[%emt 0:00:01]} 35. Rc7 {[%emt 0:00:02]} Rd8 {[%emt 0:00:01]} 36. h3 {[%emt 0:00:02]} Rd1+ {[%emt 0:00:01]} 37. Kf2 {[%emt 0:00:00]} Rd2+ {[%emt 0:00:01]} 38. Kg1 {[%emt 0:00:01]} Ne3 {[%emt 0:00:00]} 39. Bc6 {[%emt 0:00:02]} g4 {[%emt 0:00:02]} 40. hxg4 {[%emt 0:00:00]} hxg4 {[%emt 0:00:00]} 41. Kh2 {[%emt 0:00:00]} Nf1+ {[%emt 0:00:02]} 42. Kg1 {[%emt 0:00:01]} Ne3 {[%emt 0:00:00]} 43. g3 {[%emt 0:00:00]} Bd3 {[%emt 0:00:02]} 44. b5 {[%emt 0:00:01]} Nf5 {[%emt 0:00:01]} 45. b6 {[%emt 0:00:01]} Rb2 {[%emt 0:00:01]} 46. b7 {[%emt 0:00:01]} Ba6 {[%emt 0:00:01]} 47. Bb5 {[%emt 0:00:02]} Bxb7 {[%emt 0:00:02]} 48. Rxb7 {[%emt 0:00:00]} Nxg3 {[%emt 0:00:00]} 49. a5 {[%emt 0:00:00]} Ra2 {[%emt 0:00:01]} 50. a6 {[%emt 0:00:02]} Nf5 {[%emt 0:00:01]} 51. a7 {[%emt 0:00:02]} Nh4 {[%emt 0:00:00]} 52. Bc6 {[%emt 0:00:01]} Nf3+ {[%emt 0:00:02]} 53. Kf1 {[%emt 0:00:00]} Ke5 {[%emt 0:00:03]} 54. Rf7 {[%emt 0:00:02]} Nd2+ {[%emt 0:00:01]} 55. Ke1 {[%emt 0:00:01]} Nf3+ {[%emt 0:00:01]} 56. Rxf3 {[%emt 0:00:01]} gxf3 {[%emt 0:00:01]} 57. a8=Q {[%emt 0:00:00]} Rxa8 {[%emt 0:00:01]} 58. Bxa8 {[%emt 0:00:00]} Kd6 {[%emt 0:00:01]} 59. Bxf3 {[%emt 0:00:02]} Kc5 {[%emt 0:00:00]} 60. Kd2 {[%emt 0:00:00]} Kc4 {[%emt 0:00:01]} 61. Kc2 {[%emt 0:00:00]} Kc5 {[%emt 0:00:00]} 62. Kd3 {[%emt 0:00:00]} Kb5 {[%emt 0:00:00]} 63. Kd4 {[%emt 0:00:01]} Kb6 {[%emt 0:00:01]} 64. c4 {[%emt 0:00:00]} Kc7 {[%emt 0:00:00]} 65. c5 {[%emt 0:00:00]} Kd7 {[%emt 0:00:00]} 66. Kd5 {[%emt 0:00:01]} Kc7 {[%emt 0:00:00]} 67. c6 {[%emt 0:00:00]} 1-0

[Event "Speed Chess Championship 2020"]
[Site "Online"]
[Date "2020.11.15"]
[Round "1.25"]
[White "Duda, Jan-Krzysztof"]
[Black "Caruana, Fabiano"]
[Result "1-0"]
[ECO "E53"]
[WhiteElo "2743"]
[BlackElo "2823"]
[Annotator "ChessBase"]
[PlyCount "103"]
[EventDate "2020.10.31"]
[EventType "k.o."]
[EventCountry "NET"]
[SourceTitle "playchess.com"]
[Source "ChessBase"]
[SourceQuality "1"]
[TimeControl "60+1"]

1. d4 {[%emt 0:00:01]} Nf6 {[%emt 0:00:01]} 2. c4 {[%emt 0:00:00]} e6 {[%emt 0:00:00]} 3. Nc3 {[%emt 0:00:00]} Bb4 {[%emt 0:00:01]} 4. e3 {[%emt 0:00:01]} O-O {[%emt 0:00:02]} 5. Bd3 {[%emt 0:00:00]} c5 {[%emt 0:00:00]} 6. Nf3 {[%emt 0:00:01]} d5 {[%emt 0:00:01]} 7. cxd5 {[%emt 0:00:01]} exd5 {[%emt 0:00:01]} 8. dxc5 {[%emt 0:00:00]} Nbd7 {[%emt 0:00:01]} 9. Be2 {[%emt 0:00:02]} Bxc3+ {[%emt 0:00:01]} 10. Bd2 {[%emt 0:00:01]} Nxc5 {[%emt 0:00:00]} 11. Bxc3 {[%emt 0:00:01]} Nce4 {[%emt 0:00:04]} 12. Bd4 {[%emt 0:00:01]} Be6 {[%emt 0:00:01]} 13. O-O {[%emt 0:00:02]} Qe7 {[%emt 0:00:02]} 14. h3 {[%emt 0:00:06]} Rfc8 {[%emt 0:00:03]} 15. Qb3 {[%emt 0:00:01]} Nc5 {[%emt 0:00:01]} 16. Qa3 {[%emt 0:00:02]} b6 {[%emt 0:00:01]} 17. Rfc1 {[%emt 0:00:01]} Nfe4 {[%emt 0:00:01]} 18. b4 {[%emt 0:00:05]} Nd7 {[%emt 0:00:02]} 19. Qb2 {[%emt 0:00:01]} Ndf6 {[%emt 0:00:02]} 20. Ba6 {[%emt 0:00:01]} Rxc1+ {[%emt 0:00:02]} 21. Rxc1 {[%emt 0:00:00]} Nd6 {[%emt 0:00:01]} 22. Bxf6 {[%emt 0:00:03]} gxf6 {[%emt 0:00:03]} 23. Nd4 {[%emt 0:00:01]} Nc4 {[%emt 0:00:08]} 24. Qe2 {[%emt 0:00:06]} Ne5 {[%emt 0:00:10]} 25. a3 {[%emt 0:00:02]} Kh8 {[%emt 0:00:01]} 26. Qh5 {[%emt 0:00:02]} Rg8 {[%emt 0:00:02]} 27. Bf1 {[%emt 0:00:10]} Bd7 {[%emt 0:00:04]} 28. Rc3 {[%emt 0:00:06]} Qd6 {[%emt 0:00:03]} 29. f4 {[%emt 0:00:06]} Nc6 {[%emt 0:00:04]} 30. Bd3 {[%emt 0:00:01]} Rg7 {[%emt 0:00:02]} 31. Nf5 {[%emt 0:00:13]} Bxf5 {[%emt 0:00:02]} 32. Bxf5 {[%emt 0:00:01]} d4 {[%emt 0:00:03]} 33. Rd3 {[%emt 0:00:00]} Qd5 {[%emt 0:00:03]} 34. e4 {[%emt 0:00:05]} Qc4 {[%emt 0:00:01]} 35. Qd1 {[%emt 0:00:02]} Rg8 {[%emt 0:00:09]} 36. Kh2 {[%emt 0:00:01]} Rg7 {[%emt 0:00:03]} 37. Qd2 {[%emt 0:00:02]} b5 {[%emt 0:00:01]} 38. Bd7 {[%emt 0:00:01]} Rg8 {[%emt 0:00:05]} 39. Bxc6 {[%emt 0:00:01]} Qxc6 {[%emt 0:00:00]} 40. Rxd4 {[%emt 0:00:00]} Qc7 {[%emt 0:00:01]} 41. Rd6 {[%emt 0:00:00]} Qe7 {[%emt 0:00:00]} 42. Qd4 {[%emt 0:00:01]} Kg7 {[%emt 0:00:01]} 43. g4 {[%emt 0:00:03]} Rc8 {[%emt 0:00:01]} 44. g5 {[%emt 0:00:00]} Kg8 {[%emt 0:00:02]} 45. gxf6 {[%emt 0:00:01]} Qf8 {[%emt 0:00:03]} 46. Kg3 {[%emt 0:00:05]} Kh8 {[%emt 0:00:01]} 47. Qe5 {[%emt 0:00:01]} Re8 {[%emt 0:00:04]} 48. Qd5 {[%emt 0:00:02]} Qg8+ {[%emt 0:00:01]} 49. Qg5 {[%emt 0:00:00]} Qf8 {[%emt 0:00:02]} 50. e5 {[%emt 0:00:01]} Rc8 {[%emt 0:00:01]} 51. Kh4 {[%emt 0:00:01]} Qe8 {[%emt 0:00:01]} 52. Qg7# {[%emt 0:00:01]} 1-0

[Event "Speed Chess Championship 2020"]
[Site "Online"]
[Date "2020.11.16"]
[Round "1.25"]
[White "Artemiev, Vladislav"]
[Black "Giri, Anish"]
[Result "1-0"]
[ECO "E62"]
[WhiteElo "2708"]
[BlackElo "2764"]
[Annotator "ChessBase"]
[PlyCount "107"]
[EventDate "2020.10.31"]
[EventType "k.o."]
[EventCountry "NET"]
[SourceTitle "playchess.com"]
[Source "ChessBase"]
[SourceQuality "1"]
[TimeControl "60+1"]

1. d4 {[%emt 0:00:01]} Nf6 {[%emt 0:00:01]} 2. c4 {[%emt 0:00:00]} g6 {[%emt 0:00:00]} 3. g3 {[%emt 0:00:01]} Bg7 {[%emt 0:00:00]} 4. Bg2 {[%emt 0:00:01]} O-O {[%emt 0:00:01]} 5. Nc3 {[%emt 0:00:01]} d6 {[%emt 0:00:00]} 6. Nf3 {[%emt 0:00:00]} a5 {[%emt 0:00:01]} 7. O-O {[%emt 0:00:02]} Bf5 {[%emt 0:00:00]} 8. Nh4 {[%emt 0:00:02]} Bc8 {[%emt 0:00:01]} 9. b3 {[%emt 0:00:01]} Nc6 {[%emt 0:00:04]} 10. Bb2 {[%emt 0:00:01]} e5 {[%emt 0:00:02]} 11. dxe5 {[%emt 0:00:06]} Nxe5 {[%emt 0:00:01]} 12. Nf3 {[%emt 0:00:03]} Nfd7 {[%emt 0:00:03]} 13. Qd2 {[%emt 0:00:05]} a4 {[%emt 0:00:03]} 14. Nb5 {[%emt 0:00:03]} axb3 {[%emt 0:00:09]} 15. axb3 {[%emt 0:00:01]} Rxa1 {[%emt 0:00:00]} 16. Bxa1 {[%emt 0:00:01]} Nxf3+ {[%emt 0:00:01]} 17. Bxf3 {[%emt 0:00:02]} Ne5 {[%emt 0:00:01]} 18. Bg2 {[%emt 0:00:01]} Re8 {[%emt 0:00:02]} 19. Rd1 {[%emt 0:00:02]} b6 {[%emt 0:00:01]} 20. Nc3 {[%emt 0:00:03]} Bd7 {[%emt 0:00:02]} 21. h3 {[%emt 0:00:02]} h5 {[%emt 0:00:03]} 22. f4 {[%emt 0:00:03]} Nc6 {[%emt 0:00:02]} 23. Nd5 {[%emt 0:00:00]} Be6 {[%emt 0:00:03]} 24. Bxg7 {[%emt 0:00:02]} Kxg7 {[%emt 0:00:00]} 25. Qc3+ {[%emt 0:00:02]} f6 {[%emt 0:00:02]} 26. Nxf6 {[%emt 0:00:06]} Qxf6 {[%emt 0:00:02]} 27. Qxf6+ {[%emt 0:00:01]} Kxf6 {[%emt 0:00:00]} 28. Bxc6 {[%emt 0:00:00]} Re7 {[%emt 0:00:00]} 29. Bg2 {[%emt 0:00:05]} Bf5 {[%emt 0:00:01]} 30. Kf2 {[%emt 0:00:12]} Bc2 {[%emt 0:00:01]} 31. Rc1 {[%emt 0:00:01]} Bxb3 {[%emt 0:00:00]} 32. g4 {[%emt 0:00:01]} hxg4 {[%emt 0:00:02]} 33. hxg4 {[%emt 0:00:00]} Ba4 {[%emt 0:00:00]} 34. g5+ {[%emt 0:00:01]} Kg7 {[%emt 0:00:01]} 35. e4 {[%emt 0:00:01]} Bc6 {[%emt 0:00:01]} 36. Ke3 {[%emt 0:00:01]} b5 {[%emt 0:00:03]} 37. cxb5 {[%emt 0:00:01]} Bxb5 {[%emt 0:00:02]} 38. Kf2 {[%emt 0:00:04]} Ba6 {[%emt 0:00:02]} 39. f5 {[%emt 0:00:01]} gxf5 {[%emt 0:00:06]} 40. exf5 {[%emt 0:00:00]} Re5 {[%emt 0:00:01]} 41. Rxc7+ {[%emt 0:00:02]} Kf8 {[%emt 0:00:00]} 42. Bh3 {[%emt 0:00:02]} Bd3 {[%emt 0:00:03]} 43. Rc8+ {[%emt 0:00:01]} Kf7 {[%emt 0:00:02]} 44. g6+ {[%emt 0:00:01]} Kg7 {[%emt 0:00:14]} 45. Rc7+ {[%emt 0:00:00]} Kg8 {[%emt 0:00:02]} 46. f6 {[%emt 0:00:01]} Bxg6 {[%emt 0:00:05]} 47. Rg7+ {[%emt 0:00:01]} Kf8 {[%emt 0:00:00]} 48. Rxg6 {[%emt 0:00:01]} Kf7 {[%emt 0:00:02]} 49. Rh6 {[%emt 0:00:00]} Rg5 {[%emt 0:00:00]} 50. Bd7 {[%emt 0:00:03]} d5 {[%emt 0:00:07]} 51. Kf3 {[%emt 0:00:02]} d4 {[%emt 0:00:01]} 52. Kf4 {[%emt 0:00:00]} Rg1 {[%emt 0:00:01]} 53. Bb5 {[%emt 0:00:06]} Re1 {[%emt 0:00:03]} 54. Bc4+ {[%emt 0:00:01]} 1-0

[Event "Speed Chess Championship 2020"]
[Site "Online"]
[Date "2020.11.08"]
[Round "1.27"]
[White "So, Wesley"]
[Black "Abdusattorov, Nodirbek"]
[Result "0-1"]
[ECO "B92"]
[WhiteElo "2816"]
[BlackElo "2662"]
[Annotator "ChessBase"]
[PlyCount "94"]
[EventDate "2020.10.31"]
[EventType "k.o."]
[SourceTitle "playchess.com"]
[Source "ChessBase"]
[SourceQuality "1"]
[TimeControl "60+1"]

1. e4 {[%emt 0:00:01]} c5 {[%emt 0:00:01]} 2. Nf3 {[%emt 0:00:00]} d6 {[%emt 0:00:00]} 3. d4 {[%emt 0:00:01]} cxd4 {[%emt 0:00:00]} 4. Nxd4 {[%emt 0:00:00]} Nf6 {[%emt 0:00:00]} 5. Nc3 {[%emt 0:00:01]} a6 {[%emt 0:00:01]} 6. Be2 {[%emt 0:00:00]} e5 {[%emt 0:00:01]} 7. Nf3 {[%emt 0:00:00]} Be7 {[%emt 0:00:01]} 8. Bg5 {[%emt 0:00:01]} Be6 {[%emt 0:00:00]} 9. Bxf6 {[%emt 0:00:01]} Bxf6 {[%emt 0:00:00]} 10. O-O {[%emt 0:00:00]} O-O {[%emt 0:00:01]} 11. Nd5 {[%emt 0:00:01]} Nd7 {[%emt 0:00:01]} 12. Bc4 {[%emt 0:00:00]} Nb6 {[%emt 0:00:01]} 13. Bb3 {[%emt 0:00:07]} Rc8 {[%emt 0:00:04]} 14. c3 {[%emt 0:00:07]} Bxd5 {[%emt 0:00:07]} 15. Bxd5 {[%emt 0:00:00]} Nxd5 {[%emt 0:00:01]} 16. Qxd5 {[%emt 0:00:02]} Qb6 {[%emt 0:00:00]} 17. Qb3 {[%emt 0:00:03]} Qxb3 {[%emt 0:00:09]} 18. axb3 {[%emt 0:00:00]} Rfd8 {[%emt 0:00:01]} 19. Rfd1 {[%emt 0:00:02]} Kf8 {[%emt 0:00:02]} 20. Ne1 {[%emt 0:00:00]} Ke7 {[%emt 0:00:03]} 21. Nc2 {[%emt 0:00:01]} Ke6 {[%emt 0:00:02]} 22. Nb4 {[%emt 0:00:02]} Bg5 {[%emt 0:00:01]} 23. Kf1 {[%emt 0:00:02]} f5 {[%emt 0:00:00]} 24. exf5+ {[%emt 0:00:01]} Kxf5 {[%emt 0:00:00]} 25. Ke2 {[%emt 0:00:01]} Ke6 {[%emt 0:00:02]} 26. Ra5 {[%emt 0:00:03]} Rc5 {[%emt 0:00:09]} 27. Rxc5 {[%emt 0:00:03]} dxc5 {[%emt 0:00:00]} 28. Nd3 {[%emt 0:00:01]} b6 {[%emt 0:00:02]} 29. f3 {[%emt 0:00:06]} a5 {[%emt 0:00:02]} 30. g3 {[%emt 0:00:05]} h5 {[%emt 0:00:02]} 31. f4 {[%emt 0:00:02]} Bf6 {[%emt 0:00:04]} 32. fxe5 {[%emt 0:00:02]} Be7 {[%emt 0:00:13]} 33. Nf4+ {[%emt 0:00:11]} Kxe5 {[%emt 0:00:00]} 34. Rxd8 {[%emt 0:00:02]} Bxd8 {[%emt 0:00:00]} 35. Nxh5 {[%emt 0:00:01]} g5 {[%emt 0:00:01]} 36. g4 {[%emt 0:00:06]} b5 {[%emt 0:00:01]} 37. Kd3 {[%emt 0:00:02]} Kd5 {[%emt 0:00:04]} 38. h3 {[%emt 0:00:02]} c4+ {[%emt 0:00:01]} 39. bxc4+ {[%emt 0:00:03]} bxc4+ {[%emt 0:00:00]} 40. Ke3 {[%emt 0:00:03]} Bb6+ {[%emt 0:00:02]} 41. Kf3 {[%emt 0:00:01]} Bd8 {[%emt 0:00:05]} 42. Ke3 {[%emt 0:00:02]} a4 {[%emt 0:00:00]} 43. Ng3 {[%emt 0:00:03]} Bc7 {[%emt 0:00:00]} 44. Ne4 {[%emt 0:00:06]} Bf4+ {[%emt 0:00:01]} 45. Kf3 {[%emt 0:00:01]} Bc1 {[%emt 0:00:01]} 46. Nf6+ {[%emt 0:00:04]} Ke6 {[%emt 0:00:02]} 47. Ne4 {[%emt 0:00:01]} Bxb2 {[%emt 0:00:00]} 0-1

[Event "Speed Chess Championship 2020"]
[Site "Online"]
[Date "2020.11.04"]
[Round "1.27"]
[White "Firouzja, Alireza"]
[Black "Fedoseev, Vladimir"]
[Result "0-1"]
[ECO "D73"]
[WhiteElo "2749"]
[BlackElo "2676"]
[Annotator "ChessBase"]
[PlyCount "94"]
[EventDate "2020.10.31"]
[EventType "k.o."]
[SourceTitle "playchess.com"]
[Source "ChessBase"]
[SourceQuality "1"]
[TimeControl "60+1"]

1. Nf3 {[%emt 0:00:01]} Nf6 {[%emt 0:00:01]} 2. g3 {[%emt 0:00:00]} g6 {[%emt 0:00:00]} 3. Bg2 {[%emt 0:00:01]} Bg7 {[%emt 0:00:00]} 4. O-O {[%emt 0:00:00]} O-O {[%emt 0:00:01]} 5. d4 {[%emt 0:00:01]} d5 {[%emt 0:00:00]} 6. c4 {[%emt 0:00:01]} c6 {[%emt 0:00:01]} 7. Ne5 {[%emt 0:00:01]} Be6 {[%emt 0:00:03]} 8. cxd5 {[%emt 0:00:01]} cxd5 {[%emt 0:00:02]} 9. Nc3 {[%emt 0:00:01]} Nbd7 {[%emt 0:00:01]} 10. Bf4 {[%emt 0:00:04]} Rc8 {[%emt 0:00:12]} 11. Rc1 {[%emt 0:00:05]} Qb6 {[%emt 0:00:05]} 12. Qd2 {[%emt 0:00:02]} Rfd8 {[%emt 0:00:09]} 13. Nxd7 {[%emt 0:00:03]} Bxd7 {[%emt 0:00:01]} 14. Be5 {[%emt 0:00:05]} Bc6 {[%emt 0:00:01]} 15. e3 {[%emt 0:00:04]} e6 {[%emt 0:00:02]} 16. Rc2 {[%emt 0:00:03]} Ne8 {[%emt 0:00:00]} 17. Bxg7 {[%emt 0:00:05]} Kxg7 {[%emt 0:00:01]} 18. Rfc1 {[%emt 0:00:02]} Nd6 {[%emt 0:00:00]} 19. b3 {[%emt 0:00:00]} Qa5 {[%emt 0:00:06]} 20. h4 {[%emt 0:00:02]} h5 {[%emt 0:00:03]} 21. Bf1 {[%emt 0:00:06]} Bd7 {[%emt 0:00:01]} 22. Bd3 {[%emt 0:00:02]} Rc6 {[%emt 0:00:01]} 23. Nb1 {[%emt 0:00:11]} Qxd2 {[%emt 0:00:03]} 24. Nxd2 {[%emt 0:00:01]} Rdc8 {[%emt 0:00:01]} 25. Rxc6 {[%emt 0:00:00]} Rxc6 {[%emt 0:00:00]} 26. Rxc6 {[%emt 0:00:01]} Bxc6 {[%emt 0:00:01]} 27. Kf1 {[%emt 0:00:01]} Bb5 {[%emt 0:00:01]} 28. Ke2 {[%emt 0:00:01]} Bxd3+ {[%emt 0:00:02]} 29. Kxd3 {[%emt 0:00:00]} Kf6 {[%emt 0:00:00]} 30. a4 {[%emt 0:00:01]} g5 {[%emt 0:00:04]} 31. Nf3 {[%emt 0:00:06]} g4 {[%emt 0:00:03]} 32. Ne5 {[%emt 0:00:01]} Kf5 {[%emt 0:00:04]} 33. Ke2 {[%emt 0:00:04]} f6 {[%emt 0:00:01]} 34. Nd3 {[%emt 0:00:02]} e5 {[%emt 0:00:02]} 35. a5 {[%emt 0:00:09]} b6 {[%emt 0:00:10]} 36. axb6 {[%emt 0:00:01]} axb6 {[%emt 0:00:00]} 37. Kd2 {[%emt 0:00:02]} Ke4 {[%emt 0:00:02]} 38. Ke2 {[%emt 0:00:00]} Nb5 {[%emt 0:00:02]} 39. dxe5 {[%emt 0:00:05]} fxe5 {[%emt 0:00:00]} 40. Kd2 {[%emt 0:00:01]} d4 {[%emt 0:00:05]} 41. exd4 {[%emt 0:00:00]} Nxd4 {[%emt 0:00:00]} 42. b4 {[%emt 0:00:02]} b5 {[%emt 0:00:02]} 43. Nc5+ {[%emt 0:00:02]} Kf3 {[%emt 0:00:01]} 44. Ke1 {[%emt 0:00:00]} Nc2+ {[%emt 0:00:01]} 45. Kf1 {[%emt 0:00:01]} Nxb4 {[%emt 0:00:00]} 46. Nd7 {[%emt 0:00:02]} Nd3 {[%emt 0:00:03]} 47. Nf6 {[%emt 0:00:02]} b4 {[%emt 0:00:01]} 0-1